bitfinex-derivatives/quotes_ETHF0:USTF0_20250105
["timestamp","ask_amount","ask_price","bid_price","bid_amount"]
[1736120762643,4.86474136,3636.8,3636.6,0.24754]
[1736120763145,4.61721136,3636.8,3636.4,0.8439]
[1736120763340,4.61721136,3636.8,3635.4,0.61905]
[1736120763341,0.24756,3636.3,3635.4,0.61905]
[1736120763549,0.99511136,3636.1,3635.7,1.2527]
[1736120763751,0.99511136,3636.1,3635.9,0.24759]
[1736120763752,1.24268136,3636.1,3635.9,0.24759]
[1736120763938,2.11908136,3636.1,3635.9,37.44759]
[1736120764247,1.87151136,3636.1,3635.7,1.2527]
[1736120764540,0.99511136,3635.9,3635.7,0.2476]
[1736120764740,1.24270136,3635.9,3635.6,0.24761]
[1736120764935,0.99511136,3635.9,3635.7,0.2476]
[1736120765141,0.8764,3636.1,3635.7,0.2476]
[1736120765340,0.24759,3636.0,3635.7,0.2476]
[1736120765743,0.8764,3636.1,3635.6,0.24761]
[1736120765942,0.24759,3635.9,3635.6,0.24761]
[1736120767345,0.24759,3635.9,3635.5,37.2]
[1736120767346,0.24761,3635.7,3635.5,37.2]
[1736120767842,0.65531,3635.6,3635.5,37.2]
[1736120768048,0.65531,3635.6,3635.4,3.2078]
[1736120768745,0.24762,3635.5,3635.4,3.2078]
[1736120769751,0.4077,3635.6,3635.4,3.2078]
[1736120769948,0.65531,3635.6,3635.4,3.2078]
[1736120772951,0.65531,3635.6,3635.5,0.00260912]
[1736120776448,0.4077,3635.6,3635.5,0.00260912]
[1736120776652,0.65531,3635.6,3635.5,0.00260912]
[1736120777253,0.4077,3635.6,3635.5,0.00260912]
[1736120778858,0.819,3635.6,3635.5,0.00260912]
[1736120779661,0.4297,3636.1,3635.5,0.00260912]
[1736120779854,0.8515,3636.1,3635.9,0.24757]
[1736120780358,0.4218,3636.1,3635.5,3.50140442]
[1736120780560,3.2078,3636.3,3636.2,0.24756]
[1736120780759,0.4218,3636.5,3636.4,0.24754]
[1736120782160,3.2078,3636.7,3636.6,0.24752]
[1736120782850,2.6422953,3637.2,3636.1,3.0710953]
[1736120782851,3.2078,3637.1,3636.4,2.2135953]
[1736120783058,0.8432,3637.2,3637.1,0.24749]
[1736120783359,0.4145,3637.2,3637.1,3.45529]
[1736120783659,2.14774498,3637.5,3637.1,3.2078]
[1736120783851,2.14774498,3637.5,3637.2,0.441]
[1736120784052,2.14774498,3637.5,3637.2,0.8542]
[1736120784252,2.14774498,3637.5,3637.3,0.24747]
[1736120784453,3.45527,3637.6,3637.3,0.24748]
[1736120784855,3.2078,3637.6,3637.4,0.24748]
[1736120785254,3.2078,3637.6,3637.2,0.8542]
[1736120785564,3.45527,3637.6,3637.4,0.24748]
[1736120786061,3.45527,3637.6,3637.2,0.8542]
[1736120786260,3.45527,3637.6,3637.3,0.24748]
[1736120786654,3.2078,3637.6,3637.2,0.8542]
[1736120786853,3.2078,3637.6,3637.3,0.24747]
[1736120787054,0.24746,3637.5,3637.3,0.24747]
[1736120787457,3.2078,3637.6,3637.3,0.24747]
[1736120787458,3.45526,3637.6,3637.3,0.24748]
[1736120787658,0.24746,3637.5,3637.3,0.24748]
[1736120788851,3.2078,3637.6,3637.5,0.24746]
[1736120789556,3.45526,3637.6,3637.4,0.24747]
[1736120789755,3.45526,3637.6,3637.3,0.24748]
[1736120790157,0.24747,3637.5,3637.3,0.24748]
[1736120790752,0.24747,3637.5,3637.2,0.8542]
[1736120790961,0.24749,3637.1,3636.8,0.24751]
[1736120791261,0.4388,3637.0,3636.8,0.24751]
[1736120791457,0.24751,3636.8,3636.7,3.2078]
[1736120797970,0.676,3636.9,3636.7,3.45531]
[1736120798165,0.4388,3637.0,3636.9,0.2475]
[1736120798468,2.39522498,3637.2,3637.0,0.24749]
[1736120798658,2.39522498,3637.2,3637.0,37.44749]
[1736120799060,2.14774498,3637.2,3637.1,0.24749]
[1736120799669,0.24746,3637.5,3637.0,37.2]
[1736120799670,0.24746,3637.5,3637.3,0.24747]
[1736120800268,0.24747,3637.4,3637.2,0.24747]
[1736120800671,0.24746,3637.5,3637.3,0.24747]
[1736120801773,0.24746,3637.4,3637.3,0.24747]
[1736120802172,0.24746,3637.5,3637.3,0.24747]
[1736120802372,0.24746,3637.4,3637.2,0.24747]
[1736120802875,0.4406,3637.7,3637.3,0.24747]
[1736120803172,0.4406,3637.7,3637.4,0.4468]
[1736120803771,0.24746,3637.5,3637.4,0.4468]
[1736120803967,0.4406,3637.7,3637.4,0.69426]
[1736120804173,0.24745,3637.6,3637.5,0.4473]
[1736120804678,0.68805,3637.7,3637.6,0.24745]
[1736120804971,2.14774498,3638.0,3637.9,0.24743]
[1736120805170,2.14774498,3638.0,3637.9,5.6688253]
[1736120805368,2.14774498,3638.0,3637.9,3.45523]
[1736120805588,3.22622116,3638.1,3637.9,3.45523]
[1736120805589,2.14774498,3638.1,3638.0,0.24742]
[1736120805772,2.14774498,3638.1,3637.9,3.2078]
[1736120805773,0.24742,3638.0,3637.9,3.2078]
[1736120805978,0.24743,3637.9,3637.7,0.68774]
[1736120806280,2.39516498,3638.1,3637.8,0.24743]
[1736120806667,0.24742,3638.0,3637.8,0.24743]
[1736120807379,0.24741,3638.2,3637.9,0.24743]
[1736120807578,3.655,3638.5,3637.9,0.24743]
[1736120808083,3.655,3638.5,3637.7,0.4403]
[1736120808381,3.655,3638.5,3638.4,0.2474]
[1736120808585,3.655,3638.5,3638.3,0.2474]
[1736120809286,3.90239,3638.5,3638.3,0.2474]
[1736120810186,0.69459,3638.5,3638.3,0.2474]
[1736120810488,0.69459,3638.5,3638.4,0.4258]
[1736120811006,3.2078,3638.9,3638.4,0.4258]
[1736120811187,0.24737,3638.8,3638.5,0.24738]
[1736120812485,0.24737,3638.8,3638.5,0.24739]
[1736120813082,0.4465,3638.9,3638.4,0.4258]
[1736120813284,0.24739,3638.5,3638.4,0.4258]
[1736120814185,0.24739,3638.6,3638.4,0.67319]
[1736120815887,0.24737,3638.8,3638.4,0.4258]
[1736120816083,0.24739,3638.6,3638.4,0.4258]
[1736120816389,0.24738,3638.7,3638.5,0.24739]
[1736120816985,0.4465,3638.9,3638.4,0.4258]
[1736120817191,0.2474,3638.3,3638.1,3.45521]
[1736120817389,2.2135953,3638.7,3638.1,3.45521]
[1736120817586,0.2474,3638.3,3638.1,3.45521]
[1736120819485,2.2135953,3638.7,3638.1,3.2078]
[1736120819787,0.24741,3638.3,3638.1,3.2078]
[1736120820185,0.4138,3638.2,3638.1,3.2078]
[1736120821290,0.66121,3638.2,3638.1,3.2078]
[1736120821491,1.09381,3638.2,3638.1,3.2078]
[1736120821688,0.24743,3638.0,3637.8,0.24744]
[1736120821887,0.24743,3638.0,3637.9,37.2]
[1736120822392,0.24742,3638.1,3637.9,37.44743]
[1736120823993,0.8464,3638.2,3637.9,37.2]
[1736120824195,1.09381,3638.2,3638.0,0.24742]
[1736120824389,0.8464,3638.2,3638.0,0.24742]
[1736120824694,3.2078,3638.5,3637.9,37.2]
[1736120824695,0.24739,3638.6,3638.4,0.24739]
[1736120824892,0.24737,3638.8,3638.6,0.24738]
[1736120825087,0.24737,3638.8,3638.2,0.4415]
[1736120825088,0.8675,3638.9,3638.3,0.428]
[1736120825292,0.8675,3638.9,3638.5,3.2078]
[1736120825489,1.11487,3638.9,3638.6,0.24738]
[1736120826599,0.8675,3638.9,3638.5,3.45518]
[1736120826895,0.24737,3638.8,3638.5,3.45518]
[1736120827096,0.24738,3638.6,3638.5,3.2078]
[1736120827298,0.24742,3638.0,3637.9,3.2078]
[1736120827898,0.8542,3638.0,3637.9,3.45523]
[1736120828401,0.4439,3638.0,3637.9,3.45523]
[1736120828590,0.4103,3638.3,3638.2,0.24741]
[1736120828796,0.4439,3638.6,3638.0,0.4388]
[1736120829000,0.69129,3638.6,3638.4,0.2474]
[1736120830401,0.4439,3638.6,3638.5,0.24739]
[1736120830698,0.4439,3638.6,3638.3,0.2474]
[1736120830900,0.24739,3638.5,3638.2,0.2474]
[1736120831091,0.24739,3638.5,3638.0,2.3867]
[1736120831291,0.24739,3638.5,3638.3,0.2474]
[1736120831493,0.4439,3638.6,3638.4,0.24739]
[1736120831697,0.69128,3638.6,3638.4,0.24739]
[1736120832198,0.4439,3638.6,3638.5,0.24739]
[1736120832591,0.4439,3638.6,3638.0,2.3867]
[1736120832901,0.69128,3638.6,3638.4,0.24739]
[1736120833200,0.24739,3638.5,3638.3,0.2474]
[1736120833400,0.4439,3638.6,3638.1,37.2]
[1736120833602,0.69129,3638.6,3638.4,0.2474]
[1736120833804,0.69129,3638.6,3638.1,37.2]
[1736120833805,0.4439,3638.6,3638.1,37.2]
[1736120834002,0.2474,3638.4,3638.2,0.24741]
[1736120834390,0.4439,3638.6,3638.1,37.2]
[1736120834391,0.24739,3638.5,3638.3,0.2474]
[1736120835100,0.24739,3638.5,3638.0,1.3197]
[1736120835101,0.4462,3638.5,3638.0,1.3197]
[1736120835298,0.24742,3638.1,3637.9,3.45523]
[1736120835503,0.4468,3638.0,3637.9,3.45523]
[1736120836294,0.4468,3638.0,3637.7,37.2]
[1736120836498,2.4610353,3637.8,3637.6,0.24745]
[1736120836702,2.2135953,3637.8,3637.6,0.24744]
[1736120837008,2.2135953,3637.8,3637.4,4.471]
[1736120837499,0.67634,3637.9,3637.7,0.24744]
[1736120837802,0.4289,3637.9,3637.7,0.24744]
[1736120838003,0.4289,3637.9,3637.4,4.471]
[1736120838506,0.4289,3637.9,3637.7,0.24744]
[1736120839313,0.4289,3637.9,3637.5,0.24746]
[1736120839507,0.4289,3637.9,3637.7,0.24744]
[1736120839708,1.14183,3638.0,3637.7,0.24744]
[1736120839910,1.14183,3638.0,3637.8,0.24743]
[1736120840307,0.8944,3638.0,3637.8,0.24743]
[1736120840612,0.4468,3638.0,3637.9,3.45523]
[1736120841205,0.69422,3638.0,3637.8,0.24743]
[1736120841914,0.4468,3638.0,3637.5,3.2078]
[1736120842213,0.24744,3637.8,3637.6,0.24745]
[1736120842915,0.4468,3638.0,3637.6,0.24745]
[1736120842916,0.4249,3637.7,3637.6,0.24745]
[1736120843215,0.69423,3638.0,3637.8,0.24743]
[1736120843512,0.24743,3637.9,3637.7,0.24744]
[1736120844813,0.4468,3638.0,3637.4,4.471]
[1736120845015,0.69423,3638.0,3637.8,0.24744]
[1736120845207,0.4468,3638.0,3637.5,2.2135953]
[1736120845412,0.4468,3638.0,3637.9,0.24743]
[1736120845912,0.4468,3638.0,3637.9,0.68343]
[1736120848111,2.59454498,3638.0,3637.9,0.68343]
[1736120849218,0.4468,3638.0,3637.9,0.68343]
[1736120849715,0.4468,3638.0,3637.9,3.89123]
[1736120852010,0.69422,3638.0,3637.9,3.89123]
[1736120852409,0.69422,3638.0,3637.9,3.45523]
[1736120853119,0.69422,3638.0,3637.9,3.2078]
[1736120853522,3.92044116,3638.0,3637.9,3.45523]
[1736120854724,3.67302116,3638.0,3637.9,3.45523]
[1736120855021,3.92044116,3638.0,3637.9,3.45523]
[1736120856321,0.69422,3638.0,3637.9,3.45523]
[1736120858023,0.4468,3638.0,3637.9,0.24743]
[1736120859323,0.69422,3638.0,3637.9,0.24743]
[1736120861720,0.24743,3637.9,3637.8,0.24743]
[1736120862225,3.67302116,3638.0,3637.6,3.6369]
[1736120862427,3.67302116,3638.0,3637.9,0.24743]
[1736120862428,3.92044116,3638.0,3637.9,0.24743]
[1736120862722,0.24743,3637.9,3637.8,0.24743]
[1736120863027,0.24743,3637.9,3637.6,3.6369]
[1736120863028,3.92045116,3638.0,3637.9,0.24743]
[1736120863415,3.92045116,3638.0,3637.6,3.6369]
[1736120863620,0.24744,3637.9,3637.6,3.6369]
[1736120864023,0.24744,3637.8,3637.6,3.6369]
[1736120864527,3.67302116,3638.0,3637.6,3.6369]
[1736120864528,0.24744,3637.7,3637.6,3.6369]
[1736120868022,2.14180017,3637.8,3637.6,3.6369]
[1736120870927,2.14180017,3637.8,3637.6,3.88435]
[1736120871422,2.14180017,3637.8,3637.7,0.24744]
[1736120872029,2.14180017,3637.9,3637.6,3.6369]
[1736120872233,2.14180017,3637.9,3637.8,0.24744]
[1736120873226,3.92045116,3638.0,3637.6,7.95653579]
[1736120873429,3.92045116,3638.0,3637.9,0.24743]
[1736120874528,4.33291299,3638.0,3637.9,0.24743]
[1736120877127,1.10669183,3638.0,3637.9,0.24743]
[1736120878237,0.69423,3638.0,3637.9,0.24743]
[1736120879839,5.41473001,3638.0,3637.9,0.24743]
[1736120880733,0.24743,3637.9,3637.8,0.24743]
[1736120881634,0.24743,3637.9,3637.8,4.56706579]
[1736120882031,0.24743,3637.9,3637.8,4.56707579]
[1736120883036,4.94985067,3637.9,3637.8,4.56707579]
[1736120884338,4.94985067,3637.9,3637.8,4.31963579]
[1736120884638,4.94985067,3637.9,3637.8,3.64373579]
[1736120885438,4.24401202,3637.9,3637.2,6.47217687]
[1736120885640,0.24747,3637.3,3637.2,6.47217687]
[1736120886739,1.24519401,3637.3,3637.2,6.47217687]
[1736120886939,1.24519401,3637.3,3636.7,10.81229558]
[1736120886940,1.41018584,3637.3,3636.9,6.47217687]
[1736120887135,1.24521401,3637.0,3636.9,6.47217687]
[1736120888835,0.24751,3636.8,3636.7,0.99772401]
[1736120889138,4.69893308,3637.0,3636.6,3.2078]
[1736120889338,0.24751,3636.7,3636.6,3.2078]
[1736120889535,0.24751,3636.7,3636.6,3.45532]
[1736120891335,2.13890671,3636.9,3636.6,3.45532]
[1736120891536,0.24751,3636.7,3636.6,3.45532]
[1736120891837,2.13890671,3636.9,3636.6,3.45532]
[1736120892035,0.24751,3636.7,3636.6,3.45532]
[1736120893430,0.8643,3636.8,3636.6,3.2078]
[1736120893636,0.24751,3636.7,3636.6,3.2078]
[1736120897732,0.8643,3636.8,3636.5,0.24752]
[1736120898143,0.8643,3636.8,3636.3,3.6303]
[1736120898340,0.24752,3636.6,3636.4,0.24753]
[1736120900843,0.8643,3636.8,3636.4,0.24753]
[1736120901239,0.24753,3636.5,3636.4,0.24753]
[1736120901545,0.24752,3636.6,3636.4,0.24753]
[1736120902753,0.24752,3636.6,3636.5,37.2]
[1736120902952,0.24752,3636.6,3636.5,37.44753]
[1736120903352,0.24752,3636.6,3636.4,0.24753]
[1736120903758,0.24752,3636.6,3636.4,37.44753]
[1736120905657,0.24752,3636.6,3636.4,0.24753]
[1736120906556,0.24752,3636.6,3636.3,37.6225]
[1736120906857,0.24752,3636.6,3636.5,0.24753]
[1736120911063,0.24752,3636.7,3636.5,1.24599206]
[1736120911761,0.24752,3636.7,3636.6,0.24752]
[1736120912362,1.11181,3636.8,3636.7,0.24751]
[1736120912661,2.13791044,3637.1,3637.0,0.24749]
[1736120912857,2.13791044,3637.1,3637.0,1.24595206]
[1736120913667,1.46171044,3637.1,3637.0,1.24595206]
[1736120914366,1.46171044,3637.8,3637.7,0.24744]
[1736120914962,1.46171044,3637.8,3637.7,0.66984]
[1736120915363,1.46171044,3637.8,3637.7,3.87764]
[1736120916065,0.69281,3638.3,3638.0,0.24742]
[1736120916265,0.69281,3638.3,3638.0,1.24588206]
[1736120916966,0.4454,3638.3,3637.8,3.6256]
[1736120917157,3.20686566,3638.4,3638.3,0.2474]
[1736120917554,0.4121,3638.5,3638.4,0.2474]
[1736120918957,3.20686566,3638.7,3638.6,0.24738]
[1736120919159,0.67507,3638.9,3638.6,0.24738]
[1736120920065,3.20686566,3639.1,3639.0,0.24736]
[1736120920463,3.20686566,3639.1,3638.8,0.24737]
[1736120920771,3.45421566,3639.1,3638.8,0.24737]
[1736120921067,0.24735,3639.1,3638.8,0.24737]
[1736120921268,0.24735,3639.1,3638.9,0.24736]
[1736120923265,0.24735,3639.2,3638.9,0.24736]
[1736120924073,0.8425,3639.4,3638.9,0.24736]
[1736120924274,0.24735,3639.2,3638.9,0.24736]
[1736120925669,0.24735,3639.1,3638.9,0.24736]
[1736120927276,0.24734,3639.3,3639.0,0.24735]
[1736120927671,0.24734,3639.3,3639.1,0.24735]
[1736120927873,0.8425,3639.4,3639.1,0.24735]
[1736120928179,0.24734,3639.3,3639.0,0.24735]
[1736120928478,0.8425,3639.4,3639.3,0.24734]
[1736120929478,0.8425,3639.4,3639.0,1.2999]
[1736120929669,1.08983,3639.4,3639.2,0.24734]
[1736120930177,0.8425,3639.4,3639.3,0.24734]
[1736120930373,0.8425,3639.4,3639.0,1.2999]
[1736120930374,1.08983,3639.4,3639.2,0.24734]
[1736120930775,1.08983,3639.4,3639.1,0.24735]
[1736120931374,0.8425,3639.4,3639.0,38.4999]
[1736120931582,1.08983,3639.4,3639.2,0.24734]
[1736120932674,0.24734,3639.3,3639.1,0.24735]
[1736120933075,0.8425,3639.4,3639.0,1.2999]
[1736120933277,0.4277,3639.4,3639.3,0.24734]
[1736120934482,0.4277,3639.4,3639.0,1.2999]
[1736120934684,0.4277,3639.4,3639.2,0.24734]
[1736120934685,0.67503,3639.4,3639.2,0.24734]
[1736120935481,0.24735,3639.2,3639.0,0.66265]
[1736120935780,0.4487,3639.3,3638.9,3.2078]
[1736120935988,0.69604,3639.3,3639.1,0.24735]
[1736120936484,0.69604,3639.3,3638.6,39.121]
[1736120936485,0.69604,3639.3,3639.0,0.24735]
[1736120936687,0.69604,3639.3,3638.6,39.121]
[1736120936879,0.69604,3639.3,3639.1,0.24735]
[1736120937592,0.4487,3639.3,3639.2,0.24734]
[1736120939879,0.4277,3639.4,3639.3,0.24734]
[1736120940777,0.4277,3639.4,3639.2,0.4448]
[1736120940978,0.67503,3639.4,3639.2,0.24734]
[1736120941279,0.67534,3639.3,3639.1,0.24735]
[1736120941484,0.428,3639.3,3639.2,0.24734]
[1736120942685,0.67534,3639.3,3639.1,0.24735]
[1736120944982,0.67534,3639.3,3638.6,0.24738]
[1736120944983,0.24737,3638.8,3638.6,0.24738]
[1736120945181,0.4067,3638.7,3638.6,0.24738]
[1736120947787,0.65408,3638.7,3638.5,3.45519]
[1736120947986,0.42,3638.6,3638.5,3.2078]
[1736120948193,3.2078,3639.2,3638.5,3.2078]
[1736120948485,0.24736,3638.9,3638.7,0.24737]
[1736120949885,0.24736,3639.0,3638.5,3.2078]
[1736120950388,0.24736,3639.0,3638.8,0.24737]
[1736120950785,1.2996,3639.1,3638.5,3.2078]
[1736120950985,0.24737,3638.8,3638.6,0.24738]
[1736120951991,1.2996,3639.1,3638.5,3.45519]
[1736120953284,1.2996,3639.1,3638.5,3.2078]
[1736120953485,1.54695,3639.1,3638.9,0.24736]
[1736120953779,1.2996,3639.1,3638.7,2.21067263]
[1736120953979,1.2996,3639.1,3639.0,0.24736]
[1736120953980,0.4366,3639.1,3639.0,0.24736]
[1736120954184,3.2078,3639.2,3639.1,0.24735]
[1736120954785,3.20686566,3639.3,3639.2,0.24734]
[1736120955590,3.20686566,3639.3,3639.1,37.2]
[1736120955591,0.4112,3639.5,3639.1,37.2]
[1736120955788,0.4112,3639.5,3639.4,0.24733]
[1736120957794,3.2078,3639.8,3639.7,0.24731]
[1736120958092,3.6332,3639.8,3639.7,0.24731]
[1736120958600,0.4254,3639.8,3639.7,0.24731]
[1736120959992,3.20686566,3640.0,3639.9,0.2473]
[1736120960394,4.70122088,3640.1,3639.9,2.21067263]
[1736120960586,4.27582088,3640.1,3640.0,1.06549]
[1736120960785,4.27582088,3640.1,3640.0,1.50379]
[1736120962198,3.20905253,3640.4,3640.3,0.24727]
[1736120963794,3.62125075,3640.5,3640.3,0.24727]
[1736120963991,3.62125075,3640.5,3640.0,1.2565]
[1736120964191,3.62125075,3640.5,3640.3,0.24726]
[1736120964700,3.62125075,3640.5,3640.0,1.2565]
[1736120965000,3.86851075,3640.5,3640.2,0.24727]
[1736120965402,0.24726,3640.5,3640.2,0.24727]
[1736120967601,4.70010253,3640.6,3640.3,0.24726]
[1736120967803,4.70010253,3640.6,3640.4,0.24726]
[1736120968301,4.45285253,3640.6,3640.5,0.24725]
[1736120968502,1.2438,3640.6,3640.5,0.24725]
[1736120968701,0.8152,3640.6,3640.5,0.24725]
[1736120969696,4.27582088,3640.9,3640.5,2.21067263]
[1736120969697,3.20905253,3640.9,3640.5,2.21067263]
[1736120970001,3.89328253,3640.9,3640.7,0.24724]
[1736120970402,0.24724,3640.8,3640.6,41.93325]
[1736120970893,3.64605253,3640.9,3640.6,40.4078]
[1736120971094,0.24724,3640.7,3640.6,40.4078]
[1736120971295,0.437,3640.9,3640.1,3.2078]
[1736120971501,0.437,3640.9,3640.3,0.24726]
[1736120971502,0.24725,3640.6,3640.3,0.24726]
[1736120971803,0.24725,3640.5,3640.3,0.24726]
[1736120972296,0.437,3640.4,3640.3,0.24726]
[1736120980497,0.437,3640.4,3640.1,3.2078]
[1736120980809,0.68427,3640.4,3640.2,0.24727]
[1736120981011,0.68427,3640.4,3640.2,1.24372416]
[1736120981704,0.68427,3640.4,3640.2,0.99645416]
[1736120981906,0.68427,3640.4,3640.3,0.24727]
[1736120985614,0.437,3640.4,3640.3,0.24727]
[1736120986913,0.24723,3640.9,3640.8,0.24723]
[1736120987109,0.24723,3640.9,3640.5,5.41587004]
[1736120987312,0.24723,3640.9,3640.7,0.24724]
[1736120987909,0.24723,3640.8,3640.7,0.24724]
[1736120990012,0.24723,3640.9,3640.8,0.24723]
[1736120990214,0.24723,3640.9,3640.7,0.24724]
[1736120991318,0.4065,3641.1,3640.6,1.2847]
[1736120991506,0.24724,3640.7,3640.6,1.2847]
[1736120991907,0.4065,3641.1,3640.6,1.53194]
[1736120992117,0.24724,3640.7,3640.6,1.53194]
[1736120992416,0.24724,3640.7,3640.6,0.24724]
[1736120993519,0.24724,3640.7,3640.5,0.24725]
[1736120993720,0.4089,3640.6,3640.5,0.24725]
[1736120994518,0.24724,3640.7,3640.6,0.24725]
[1736120995020,0.24724,3640.7,3640.2,3.48967004]
[1736120995213,0.68415,3640.6,3640.5,0.24725]
[1736120995921,0.4369,3640.6,3640.5,0.24725]
[1736121003626,3.20905253,3640.8,3640.2,3.48967004]
[1736121003835,3.45629253,3640.8,3640.7,0.24724]
[1736121004937,3.20905253,3640.8,3640.6,0.24724]
[1736121005133,3.20905253,3640.8,3640.2,1.2816]
[1736121005134,4.20532426,3640.8,3640.2,1.2816]
[1736121005334,4.20532426,3640.8,3640.2,1.24354173]
[1736121005335,0.24727,3640.4,3640.2,1.24354173]
[1736121005633,0.4484,3640.3,3640.1,46.87520059]
[1736121005839,0.4484,3640.3,3640.2,1.24354173]
[1736121006229,3.20905253,3640.4,3640.2,0.99627173]
[1736121006432,3.20905253,3640.4,3640.3,0.24727]
[1736121006740,3.20905253,3640.4,3640.3,0.66407]
[1736121007336,3.20905253,3640.6,3640.5,0.24725]
[1736121007537,3.20905253,3640.6,3640.5,1.24352173]
[1736121008537,3.6212311,3640.7,3640.6,0.24725]
[1736121008737,3.6212311,3640.7,3640.5,1.24352173]
[1736121008738,3.8684711,3640.7,3640.5,1.24352173]
[1736121009339,3.8684711,3640.7,3640.4,4.32153898]
[1736121009340,3.6212311,3640.7,3640.4,4.32153898]
[1736121009539,0.24725,3640.5,3640.4,4.32153898]
[1736121009833,2.2675503,3640.6,3640.3,4.32153898]
[1736121010038,1.24353173,3640.4,3640.3,4.32153898]
[1736121011331,0.24727,3640.2,3640.1,4.20407173]
[1736121011537,0.4398,3640.3,3640.1,4.20407173]
[1736121011936,0.24727,3640.2,3640.1,4.20407173]
[1736121012341,0.4398,3640.3,3640.2,0.24727]
[1736121012842,4.7295551,3640.3,3640.2,0.24727]
[1736121013838,0.85200123,3640.3,3640.2,0.24727]
[1736121014042,0.41220123,3640.3,3640.2,0.24727]
[1736121014238,0.41220123,3640.3,3640.2,0.68147]
[1736121015043,0.41220123,3640.3,3640.2,3.95473111]
[1736121015244,3.21766909,3640.5,3640.4,0.24726]
[1736121016844,3.21766909,3640.7,3640.6,0.24725]
[1736121017450,3.21766909,3640.7,3640.6,0.66325]
[1736121017648,3.21766909,3640.7,3640.6,37.86325]
[1736121018545,4.94918633,3640.9,3640.6,37.86325]
[1736121018546,0.4455,3640.8,3640.6,42.18478898]
[1736121018940,0.4455,3640.8,3640.6,41.93753898]
[1736121019148,0.4455,3640.8,3640.7,0.24724]
[1736121019648,3.66316909,3640.8,3640.7,0.24724]
[1736121020240,3.91040909,3640.8,3640.6,37.44724]
[1736121020847,4.32255595,3640.8,3640.6,37.44724]
[1736121021346,0.24724,3640.7,3640.5,3.45505]
[1736121021546,0.24724,3640.7,3640.5,0.24725]
[1736121022148,0.24724,3640.7,3640.4,41.52153898]
[1736121022149,0.41214686,3640.7,3640.6,0.24725]
[1736121023249,3.22096627,3640.7,3640.6,0.24725]
[1736121024144,3.46820627,3640.7,3640.5,0.24725]
[1736121024343,3.46820627,3640.7,3640.4,41.52153898]
[1736121024548,3.22096627,3640.7,3640.6,0.24725]
[1736121025547,3.46821627,3640.7,3640.5,0.24725]
[1736121026144,0.65941563,3640.7,3640.5,0.24725]
[1736121026950,0.41216563,3640.7,3640.3,4.32153898]
[1736121027253,0.24726,3640.4,3640.3,4.32153898]
[1736121027752,0.24727,3640.3,3640.2,4.32153898]
[1736121027944,1.12897,3640.3,3640.2,4.32153898]
[1736121028345,0.8817,3640.3,3640.2,4.56880898]
[1736121028543,0.8817,3640.3,3640.2,4.32153898]
[1736121028753,1.12897,3640.3,3640.2,4.32153898]
[1736121029149,1.12897,3640.3,3640.1,40.65508]
[1736121029150,1.54113563,3640.3,3640.1,40.65508]
[1736121029442,0.24727,3640.2,3640.1,40.4078]
[1736121029845,1.54113563,3640.3,3640.1,40.65508]
[1736121030454,0.41216563,3640.2,3640.1,40.65508]
[1736121032347,0.65943563,3640.2,3640.1,40.65508]
[1736121033144,0.41216563,3640.2,3640.1,40.65508]
[1736121033954,0.65943563,3640.2,3640.1,40.65508]
[1736121034154,3.87490778,3640.2,3640.1,40.65508]
[1736121034756,3.87490778,3640.2,3640.1,40.4078]
[1736121035553,3.87490778,3640.2,3640.1,3.2078]
[1736121035754,3.62763778,3640.2,3639.6,4.32153898]
[1736121035959,0.2473,3639.8,3639.7,37.2]
[1736121036552,0.24728,3640.1,3639.8,0.2473]
[1736121036852,0.24729,3639.9,3639.8,0.2473]
[1736121037362,4.2897551,3640.0,3639.9,0.24729]
[1736121037563,4.5370451,3640.0,3639.9,0.24729]
[1736121038259,3.87360133,3640.0,3639.9,0.24729]
[1736121038655,3.87360133,3640.0,3639.8,0.2473]
[1736121039457,0.24729,3639.9,3639.8,0.2473]
[1736121039660,0.24729,3639.9,3639.7,0.66111]
[1736121039861,0.4328,3639.8,3639.7,0.66111]
[1736121040359,0.4328,3639.8,3639.7,0.24731]
[1736121040561,0.6801,3639.8,3639.7,0.24731]
[1736121040860,0.4328,3639.8,3639.6,37.44731]
[1736121041059,2.57437139,3639.8,3639.6,37.44731]
[1736121041761,0.24731,3639.7,3639.6,37.2]
[1736121042056,0.8234,3639.7,3639.6,37.44732]
[1736121042362,1.07071,3639.7,3639.6,37.44732]
[1736121044959,1.07071,3639.7,3639.6,37.2]
[1736121045352,0.8234,3639.7,3639.5,3.2078]
[1736121045563,0.24732,3639.6,3639.5,3.2078]
[1736121048068,3.46139237,3639.6,3639.5,3.2078]
[1736121049668,0.24732,3639.6,3639.5,3.2078]
[1736121051665,0.24734,3639.3,3639.1,0.24735]
[1736121051861,0.24734,3639.3,3639.2,0.24734]
[1736121053062,0.24734,3639.3,3639.0,39.40726111]
[1736121053364,0.24734,3639.3,3639.2,0.24734]
[1736121053763,0.24734,3639.3,3639.1,0.24735]
[1736121053967,0.24734,3639.3,3639.2,0.24734]
[1736121054174,0.24733,3639.4,3639.2,0.24734]
[1736121054665,0.4258,3639.3,3639.2,0.24734]
[1736121055055,0.4258,3639.3,3639.0,2.20726111]
[1736121055258,0.67314,3639.3,3639.2,0.24734]
[1736121056960,0.24734,3639.2,3639.1,0.24735]
[1736121057269,0.67314,3639.3,3639.2,0.99701718]
[1736121057462,0.4258,3639.3,3639.2,1.24435718]
[1736121057958,0.67314,3639.3,3639.2,0.99701718]
[1736121058365,0.67314,3639.3,3639.2,1.24435718]
[1736121059169,0.4258,3639.3,3639.2,1.24435718]
[1736121060167,0.24733,3639.5,3639.3,0.24733]
[1736121060469,0.24733,3639.5,3639.4,0.99701718]